fUSD/lending_fUSD_20251112
["ID","MTS","AMOUNT","RATE_DAILY","PERIOD"]
[393784745,1762983034265,-171.37691835,0.0003116,2]
[393784746,1762983034275,-1021.58889273,0.00032258,3]
[393784747,1762983034287,-1515.09423458,0.00032258,3]
[393784748,1762983034299,-2572.07999342,0.00032258,3]
[393784749,1762983034310,-975.95722889,0.00032258,3]
[393784750,1762983034319,-1500.0,0.00032268,5]
[393784751,1762983034329,-500.0,0.00032268,5]
[393784752,1762983034338,-1008.85472047,0.00032268,5]
[393784753,1762983034347,-1500.0,0.00032268,5]
[393784754,1762983034357,-500.0,0.00032268,5]
[393784755,1762983034366,-341.58239599,0.00032268,5]
[393784756,1762983034375,-882.4138929,0.000323,2]
[393784757,1762983034385,-500.0,0.00032329,2]
[393784758,1762983034395,-13136.0785646,0.00032413,3]
[393784759,1762983034404,-1095.06,0.00032513,14]
[393784760,1762983034413,-1095.06,0.00032787,14]
[393784761,1762983034422,-1500.0,0.00032816,5]
[393784762,1762983034431,-510.59440556,0.00032816,5]
[393784763,1762983034440,-5000.0,0.000329,12]
[393784764,1762983034449,-319.98014903,0.00033,2]
[393784765,1762983034459,-1130.254,0.00033005,34]
[393784766,1762983034468,-1095.06,0.00033061,14]
[393784767,1762983034481,-13136.0785646,0.00033153,3]
[393784768,1762983034490,-151.0,0.0003316,14]
[393784769,1762983034500,-33762.5101552,0.00033163,3]
[393784770,1762983034509,-26272.1571293,0.00033163,3]
[393784771,1762983034519,-150.25,0.00033163,2]
[393784772,1762983034528,-545.22,0.00033165,2]
[393784773,1762983034538,-22448.6013485,0.00033173,2]
[393784774,1762983034549,-497.76627144,0.00033173,2]
[393784775,1762983034560,-4072.36016541,0.00033173,2]
[393784776,1762983034570,-630.18335118,0.0003324,2]
[393784777,1762983034579,-3307.9478206,0.0003325,2]
[393784778,1762983034588,-13136.0785646,0.00033311,3]
[393784779,1762983034597,-1095.06,0.00033335,14]
[393784780,1762983034606,-166.87321663,0.00033362,5]
[393784781,1762983034615,-284.28528833,0.00033368,2]
[393784782,1762983034625,-234.21,0.00033434,2]
[393784783,1762983034634,-22508.3401035,0.00033449,3]
[393784784,1762983034644,-13136.0785646,0.00033449,3]
[393784785,1762983034654,-11254.1700517,0.00033458,3]
[393784786,1762983034663,-150.25,0.00033458,2]
[393784787,1762983034677,-8597.74770085,0.00033469,3]
[393784788,1762983034688,-36427.81513589,0.00033469,3]
[393784789,1762983034699,-18947.65589762,0.00033469,3]
[393784790,1762983034710,-27400.86849362,0.00033469,3]
[393784798,1762983038093,-342.30531437,0.0003106,15]
[393784799,1762983038103,-657.09347363,0.00033469,3]
[393784800,1762983038116,-3377.72194047,0.00033469,3]
[393784801,1762983038128,-356.91274394,0.00033469,3]
[393784802,1762983038139,-689.32368187,0.00033469,3]
[393784803,1762983038213,-48041.72514311,0.00033469,3]
[393784804,1762983038223,-150.25,0.00033469,2]
[393784805,1762983038233,-500.0,0.00033473,5]
[393784806,1762983038243,-500.0,0.00033473,5]
[393784807,1762983038252,-501.17569297,0.00033473,5]
[393784808,1762983038262,-500.0,0.00033473,5]
[393784809,1762983038272,-500.0,0.00033473,5]
[393784810,1762983038282,-500.0,0.00033473,5]
[393784811,1762983038293,-500.0,0.00033473,5]
[393784812,1762983038303,-500.0,0.00033473,5]
[393784813,1762983038313,-500.0,0.00033473,5]
[393784814,1762983038323,-503.6822994,0.00033473,5]
[393784815,1762983038334,-150.0,0.00033473,5]
[393784816,1762983038345,-500.0,0.00033478,2]
[393784817,1762983038355,-500.0,0.00033478,2]
[393784818,1762983038366,-159.40146688,0.00033478,2]
[393784819,1762983038376,-551.29,0.00033479,2]
[393784820,1762983038386,-864.93,0.00033479,30]
[393784821,1762983038396,-151503.8278859,0.00033479,2]
[393784822,1762983038417,-131656.8621141,0.00033479,2]
[393784823,1762983038426,-151.38,0.000335,30]
[393784824,1762983038436,-617.0,0.000335,14]
[393784825,1762983038446,-734.28334846,0.00033608,14]
[393784831,1762983040202,-190.19416215,0.0003116,2]
[393784832,1762983040212,-360.77665154,0.00033608,14]
[393784833,1762983040222,-1095.06,0.00033882,14]
[393784834,1762983040231,-64.1638538,0.00034,2]
[393784835,1762983040243,-271.37002482,0.00034,2]
[393784836,1762983040255,-8740.31191082,0.00034,2]
[393784837,1762983040266,-495.68719811,0.00034,2]
[393784838,1762983040332,-7430.12363385,0.00034,2]
[393784839,1762983040342,-1000.0,0.00034021,5]
[393784840,1762983040352,-1000.0,0.00034021,5]
[393784841,1762983040362,-1004.16586656,0.00034021,5]
[393784842,1762983040372,-1000.0,0.00034021,5]
[393784843,1762983040382,-500.0,0.00034021,5]
[393784844,1762983040392,-336.41765726,0.00034021,5]
[393784845,1762983040404,-1000.0,0.00034021,5]
[393784846,1762983040413,-182.78404564,0.00034021,5]
[393784847,1762983040423,-1095.08,0.00034156,14]
[393784848,1762983040433,-27018.72778535,0.00034223,2]
[393784849,1762983040442,-1000.0,0.0003435,2]
[393784850,1762983040452,-1707.79896002,0.0003449,2]
[393784851,1762983040462,-156.203307,0.0003452,20]
[393784852,1762983040471,-161.644429,0.0003452,20]
[393784853,1762983040480,-161.644429,0.0003452,20]
[393784854,1762983040490,-303.155328,0.0003452,20]
[393784855,1762983040499,-303.155328,0.0003452,20]
[393784856,1762983040509,-303.155328,0.0003452,20]
[393784857,1762983040519,-284.28528831,0.00034561,2]
[393784858,1762983040529,-1500.0,0.00034568,5]
[393784859,1762983040538,-515.12719469,0.00034568,5]
[393784860,1762983040548,-517.85474684,0.00034568,5]
[393784861,1762983040558,-300.0,0.00034862,2]
[393784862,1762983040568,-181.67660261,0.000349,120]
[393784863,1762983040578,-150.0,0.00034999,2]
[393784864,1762983040588,-25.09457787,0.00035,18]
[393784865,1762983040601,-974.90542213,0.00035,18]
[393784866,1762983040613,-401.81823663,0.00035,2]
[393784868,1762983040623,-1220.88648524,0.00035,2]
[393784870,1762983040632,-331.93547369,0.00035,14]
[393784872,1762983040642,-298.31,0.00035165,2]
[393784874,1762983040651,-3824.97861376,0.00035273,2]
[393784876,1762983040663,-5506.52241984,0.00035273,2]
[393784879,1762983040682,-1420.71900848,0.00035273,2]
[393784882,1762983040692,-404.95500358,0.00035273,2]
[393784890,1762983041181,-1.7e-07,0.00035273,2]
[393784891,1762983041193,-15861.55273952,0.00035273,2]
[393784892,1762983041202,-20069.43514653,0.0003561,120]
[393784893,1762983041211,-617.0,0.000357,14]
[393784894,1762983041220,-166.87321661,0.00035749,8]
[393784895,1762983041230,-284.28528831,0.00035753,2]
[393784896,1762983041240,-7500.0,0.000359,13]
[393784897,1762983041250,-150.25,0.0003599,2]
[393784898,1762983041259,-8939.41841322,0.00036,120]
[393784899,1762983041269,-2530.68,0.00036023,2]
[393784900,1762983041278,-999.0,0.00036079,3]
[393784901,1762983041288,-151.38,0.000361,30]
[393784902,1762983041298,-66538.33866894,0.000361,2]
[393784903,1762983041307,-2500.0,0.00036239,2]
[393784904,1762983041318,-395.25909271,0.00036258,30]
[393784905,1762983041327,-27018.72778535,0.00036323,2]
[393784906,1762983041336,-179.36,0.00036384,2]
[393784907,1762983041346,-25000.0,0.00036476,2]
[393784908,1762983041356,-298.31,0.00036484,2]
[393784909,1762983041365,-5000.0,0.00036565,2]
[393784910,1762983041374,-1000.5618557,0.00036569,30]
[393784911,1762983041383,-1000.59037472,0.00036569,30]
[393784912,1762983041392,-1000.0,0.00036569,30]
[393784913,1762983041401,-1000.0,0.00036569,30]
[393784914,1762983041411,-4499.67,0.00036648,2]
[393784915,1762983041421,-2500.0,0.0003675,2]
[393784916,1762983041430,-1588.66761652,0.000368,2]
[393784917,1762983041439,-152.0,0.00036801,3]
[393784918,1762983041449,-12795.7,0.00036837,2]
[393784919,1762983041459,-274.52,0.00036901,2]
[393784920,1762983041468,-284.28528831,0.00036946,2]
[393784921,1762983041478,-32031.1558659,0.00037,5]
[393784922,1762983041488,-300.0,0.00037182,7]
[393784923,1762983041498,-150.0,0.00037189,7]
[393784924,1762983041508,-18603.0,0.00037315,2]
[393784925,1762983041517,-300.0,0.00037319,7]
[393784926,1762983041527,-150.25,0.00037363,2]
[393784927,1762983041537,-27018.72778535,0.00037373,2]
[393784928,1762983041546,-233.93239328,0.0003739,14]
[393784929,1762983041555,-300.0,0.00037456,7]
[393784930,1762983041565,-298.31,0.00037803,2]
[393784931,1762983041575,-617.0,0.000379,14]
[393784932,1762983041585,-16426.22859991,0.0003797,2]
[393784933,1762983041595,-1000.0,0.00037973,5]
[393784934,1762983041604,-150.25,0.0003799,2]
[393784935,1762983041615,-1501.95878155,0.00037999,3]
[393784936,1762983041624,-1274.62,0.00038,2]
[393784937,1762983041634,-157446.79114713,0.00038,2]
[393784938,1762983041643,-76497.02472379,0.00038,2]
[393784939,1762983041653,-463.41812963,0.00038043,6]
[393784940,1762983041663,-166.87321661,0.00038136,11]
[393784941,1762983041673,-284.28528831,0.00038138,2]
[393784942,1762983041682,-1000.0,0.00038167,2]
[393784943,1762983041692,-152.0,0.00038185,4]
[393784944,1762983041701,-6666.0,0.00038376,2]
[393784945,1762983041711,-608.0,0.00038376,2]
[393784946,1762983041720,-574.0,0.00038376,2]
[393784947,1762983041730,-151.38,0.000384,30]
[393784948,1762983041742,-151.0,0.0003842,14]
[393784949,1762983041752,-27018.72778535,0.00038423,2]
[393784950,1762983041762,-864.93,0.00038526,30]
[393784951,1762983041772,-1205.08355555,0.000386,120]
[393784952,1762983041782,-220.30899253,0.00038649,2]
[393784953,1762983041792,-1274.62,0.0003872,2]
[393784954,1762983041945,-1852.42,0.00038723,2]
[393784955,1762983041955,-399.84661035,0.000389,31]
[393784956,1762983041965,-172.09582685,0.00039,2]
[393784957,1762983041975,-153.61887372,0.00039,3]
[393784958,1762983041984,-1966.53,0.00039015,2]
[393784959,1762983041993,-220.30899253,0.00039102,2]
[393784960,1762983042002,-298.31,0.00039122,2]
[393784961,1762983042012,-5944.3817409,0.0003918,120]
[393784962,1762983042021,-284.28528831,0.00039331,2]
[393784963,1762983042030,-220.30899253,0.00039333,2]
[393784964,1762983042039,-1274.62,0.0003944,2]
[393784965,1762983042049,-150.0,0.00039465,2]
[393784966,1762983042058,-27018.72778535,0.00039473,2]
[393784967,1762983042069,-220.30899253,0.00039527,2]
[393784968,1762983042078,-152.0,0.00039569,5]
[393784969,1762983042087,-5888.0,0.00039598,2]
[393784970,1762983042097,-1317.0,0.00039646,2]
[393784971,1762983042106,-545.22,0.00039654,2]
[393784972,1762983042115,-617.0,0.000397,14]
[393784973,1762983042125,-1117.39214498,0.00039741,2]
[393784974,1762983042135,-179.36,0.00039808,2]
[393784975,1762983042144,-5888.0,0.00039815,2]
[393784976,1762983042154,-168.0,0.00039824,2]
[393784977,1762983042163,-220.30899253,0.00039876,2]
[393784978,1762983042172,-289.4139174,0.000399,120]
[393784979,1762983042181,-151.38,0.000399,30]
[393784980,1762983042191,-2000.0,0.0004,2]
[393784981,1762983042200,-33295.3526,0.00040056,2]
[393784982,1762983042210,-1000.0,0.00040056,2]
[393784983,1762983042219,-500.0,0.0004019,2]
[393784984,1762983042228,-500.0,0.0004019,2]
[393784985,1762983042237,-500.0,0.0004019,7]
[393784986,1762983042247,-199.0,0.0004019,7]
[393784987,1762983042257,-500.0,0.0004019,20]
[393784988,1762983042266,-500.0,0.0004019,20]
[393784989,1762983042276,-500.0,0.0004019,20]
[393784990,1762983042285,-500.0,0.0004019,20]
[393784991,1762983042294,-500.0,0.0004019,20]
[393784992,1762983042304,-150.25,0.0004019,2]
[393784993,1762983042313,-10000.0,0.000402,14]
[393784994,1762983042323,-220.30899253,0.00040237,2]
[393784995,1762983042332,-500.0,0.00040287,2]
[393784996,1762983042341,-500.0,0.00040287,2]
[393784997,1762983042351,-500.0,0.00040287,2]
[393784998,1762983042360,-500.0,0.00040287,2]
[393784999,1762983042371,-500.0,0.00040287,7]
[393785000,1762983042380,-500.0,0.00040287,7]
[393785001,1762983042390,-183.69568692,0.00040287,20]
[393785002,1762983042399,-500.0,0.00040287,20]
[393785003,1762983042409,-500.0,0.00040287,20]
[393785004,1762983042418,-500.0,0.00040287,20]
[393785005,1762983042427,-500.0,0.00040287,20]
[393785006,1762983042436,-500.0,0.00040287,20]
[393785007,1762983042446,-307.45218061,0.00040287,20]
[393785008,1762983042455,-540.13503616,0.00040287,20]
[393785009,1762983042464,-6064.69,0.0004029,2]
[393785010,1762983042474,-500.0,0.00040297,2]
[393785011,1762983042483,-500.0,0.00040297,2]
[393785012,1762983042492,-500.0,0.00040297,2]
[393785013,1762983042502,-500.0,0.00040297,2]
[393785014,1762983042511,-500.0,0.00040297,7]
[393785015,1762983042520,-500.0,0.00040297,7]
[393785016,1762983042529,-500.0,0.00040297,20]
[393785017,1762983042539,-12500.0,0.000403,14]
[393785018,1762983042548,-168.0,0.00040313,7]
[393785019,1762983042557,-168.0,0.00040392,2]
[393785020,1762983042566,-9998.9052,0.00040395,2]
[393785021,1762983042575,-3002.4914,0.00040395,2]
[393785022,1762983042584,-5000.0,0.000404,120]
[393785023,1762983042594,-2500.0,0.000404,14]
[393785024,1762983042603,-2659.0,0.00040406,5]
[393785025,1762983042612,-280.0,0.0004042,4]
[393785026,1762983042623,-5800.0,0.00040438,14]
[393785027,1762983042632,-298.31,0.0004044,2]
[393785028,1762983042641,-1597.0,0.00040473,2]
[393785029,1762983042650,-821.0,0.00040473,2]
[393785030,1762983042659,-813.0,0.00040473,2]
[393785031,1762983042668,-1274.0,0.00040473,2]
[393785032,1762983042677,-580.162,0.00040473,2]
[393785033,1762983042686,-1189.0,0.00040473,2]
[393785034,1762983042695,-500.0,0.0004048,2]
[393785035,1762983042705,-500.0,0.0004048,2]
[393785036,1762983042714,-500.0,0.0004048,7]
[393785037,1762983042723,-500.0,0.00040489,2]
[393785038,1762983042736,-500.0,0.00040489,7]
[393785039,1762983042745,-500.0,0.00040495,2]
[393785040,1762983042754,-500.0,0.00040495,2]
[393785041,1762983042763,-500.0,0.00040495,2]
[393785042,1762983042774,-500.0,0.00040495,2]
[393785043,1762983042783,-500.0,0.00040495,2]
[393785044,1762983042792,-500.0,0.00040495,2]
[393785045,1762983042802,-500.0,0.00040495,2]
[393785046,1762983042812,-500.0,0.00040495,2]
[393785047,1762983042821,-500.0,0.00040495,2]
[393785048,1762983042831,-500.0,0.00040495,2]
[393785049,1762983042839,-577.2315447,0.00040495,2]
[393785050,1762983042849,-500.0,0.00040495,7]
[393785051,1762983042859,-500.0,0.00040495,7]
[393785052,1762983042869,-500.0,0.00040495,7]
[393785053,1762983042879,-500.0,0.00040495,7]
[393785054,1762983042888,-500.0,0.00040495,7]
[393785056,1762983042897,-500.0,0.00040495,7]
[393785057,1762983042906,-500.0,0.00040495,7]
[393785059,1762983042915,-500.0,0.00040495,7]
[393785060,1762983042924,-500.0,0.00040495,7]
[393785062,1762983042934,-500.0,0.00040495,7]
[393785064,1762983042943,-500.0,0.00040495,7]
[393785067,1762983042952,-500.0,0.00040495,7]
[393785070,1762983042962,-500.0,0.00040495,7]
[393785072,1762983042971,-500.0,0.00040495,7]
[393785074,1762983042980,-500.0,0.00040495,7]
[393785076,1762983042989,-248.08180814,0.00040495,7]
[393785077,1762983042998,-171.02,0.000405,30]
[393785078,1762983043008,-150.0,0.000405,60]
[393785079,1762983043017,-6110.93,0.000405,14]
[393785080,1762983043026,-2500.0,0.000405,14]
[393785081,1762983043035,-224.71161189,0.00040509,2]
[393785082,1762983043044,-256.81327074,0.00040509,2]
[393785083,1762983043054,-401.27073552,0.00040509,2]
[393785084,1762983043064,-500.0,0.00040519,2]
[393785085,1762983043073,-500.0,0.00040519,2]
[393785086,1762983043082,-500.0,0.00040519,2]
[393785087,1762983043091,-500.0,0.00040519,2]
[393785088,1762983043101,-500.0,0.00040519,2]
[393785089,1762983043110,-590.40042139,0.00040519,2]
[393785090,1762983043123,-500.0,0.0004052,15]
[393785091,1762983043133,-500.0,0.0004052,15]
[393785092,1762983043143,-2551.61702667,0.00040521,2]
[393785093,1762983043151,-1705.07613235,0.00040521,2]
[393785094,1762983043161,-427.3951489,0.00040521,2]
[393785095,1762983043170,-237.93,0.00040521,120]
[393785096,1762983043180,-185.06218462,0.00040521,120]
[393785097,1762983043189,-185.06218462,0.00040521,120]
[393785098,1762983043198,-185.06,0.00040521,120]
[393785099,1762983043207,-167.57901741,0.00040521,120]
[393785100,1762983043217,-167.57,0.00040521,120]
[393785101,1762983043226,-156.40708292,0.00040521,120]
[393785102,1762983043236,-156.40708292,0.00040521,120]
[393785103,1762983043246,-156.40708292,0.00040521,120]
[393785104,1762983043255,-156.40708292,0.00040521,120]
[393785105,1762983043264,-156.4,0.00040521,120]
[393785106,1762983043274,-284.28528831,0.00040523,2]
[393785107,1762983043283,-360.84756809,0.00040523,2]
[393785108,1762983043292,-27018.72778535,0.00040523,15]
[393785109,1762983043301,-166.87321661,0.00040523,14]
[393785110,1762983043311,-588.63016062,0.00040523,8]
[393785111,1762983043319,-322.92889213,0.00040523,2]
[393785112,1762983043329,-274.52,0.00040552,14]
[393785113,1762983043338,-168.0,0.00040598,2]
[393785114,1762983043347,-2500.0,0.000406,14]
[393785115,1762983043357,-150.25,0.00040611,2]
[393785116,1762983043368,-150.25,0.00040611,2]
[393785117,1762983043377,-150.25,0.00040611,2]
[393785118,1762983043386,-150.25,0.00040611,2]
[393785119,1762983043395,-150.25,0.00040611,2]
[393785120,1762983043405,-150.25,0.00040611,2]
[393785121,1762983043414,-150.25,0.00040611,2]
[393785122,1762983043424,-150.25,0.00040611,2]
[393785123,1762983043433,-150.25,0.00040611,2]
[393785124,1762983043442,-150.25,0.00040611,2]
[393785125,1762983043451,-150.25,0.00040611,2]
[393785126,1762983043460,-150.25,0.00040611,2]
[393785127,1762983043469,-150.25,0.00040611,2]
[393785128,1762983043479,-150.25,0.00040611,2]
[393785129,1762983043488,-150.25,0.00040611,2]
[393785130,1762983043497,-150.25,0.00040611,2]
[393785131,1762983043506,-150.25,0.00040611,2]
[393785132,1762983043516,-630.18335118,0.00040611,7]
[393785133,1762983043525,-630.18335118,0.00040611,7]
[393785134,1762983043534,-151.0,0.00040618,14]
[393785135,1762983043543,-5399998.13796152,0.00040621,7]
[393785136,1762983043687,-175.69479946,0.00019889,2]
[393785137,1762983043696,-342.30531428,0.00032111,15]
[393785138,1762983043706,-48462.3523365,0.00040621,7]
[393785139,1762983043750,-3041.33723789,0.00040621,7]
[393785140,1762983043761,-11807.39208203,0.00040621,7]
[393785141,1762983043772,-1018605.35579823,0.00040621,7]
[393785142,1762983044019,-3163304.7385142,0.00040621,7]
[393785143,1762983046274,-758.56033023,0.00035932,2]
[393785144,1762983046283,-3427.0,0.00039646,2]
[393785145,1762983046293,-1033.38599341,0.00040621,7]
[393785146,1762983046304,-433.732,0.00040621,7]
[393785147,1762983046610,-588.94,0.00040621,7]
[393785148,1762983046670,-589.90423603,0.00040621,7]
[393785149,1762983046682,-4142.40633619,0.00040621,7]
[393785151,1762983061742,193.0,0.00029951,120]
[393785152,1762983065876,195.0,0.00029951,120]
[393785154,1762983307741,-600.0,0.00018453,2]
[393785155,1762983307762,-6.64933979,0.00019441,2]
[393785156,1762983311045,-201.53004459,0.00019441,2]
[393785157,1762983312559,-186.236175,0.00019441,2]
[393785158,1762983419569,270.62487157,0.00040616,30]
[393785159,1762983430617,210.04911217,0.00021385,120]
[393785160,1762983592672,-105.58444062,0.00019441,2]
[393785161,1762983592698,-214.1459639,0.00021385,2]
[393785162,1762983594286,-35.8540361,0.00021385,2]
[393785163,1762983594321,-270.33895014,0.00023335,2]
[393785164,1762983594355,-150.0,0.00027228,2]
[393785165,1762983594389,-2187.33,0.00029118,2]
[393785166,1762983594560,-3549.654587,0.00029798,2]
[393785167,1762983594633,-2900.700826,0.00029798,2]
[393785168,1762983594664,-478.56668374,0.00029948,2]
[393785169,1762983594697,-401.07707339,0.00030971,2]
[393785170,1762983594728,-200.0,0.00031053,2]
[393785171,1762983594761,-439.32083374,0.00031053,2]
[393785172,1762983597323,-1160.67916626,0.00031053,2]
[393785173,1762983597357,-710.0,0.0003116,3]
[393785174,1762983597389,-400.0,0.0003116,2]
[393785175,1762983597420,-199.0,0.00031161,7]
[393785176,1762983597450,-150.99,0.00031161,2]
[393785177,1762983597479,-500.0,0.00031161,2]
[393785178,1762983597509,-500.0,0.00031161,2]
[393785179,1762983597537,-588.74165764,0.00031161,20]
[393785180,1762983597566,-500.0,0.00031173,5]
[393785181,1762983597770,-2285.66,0.00031173,2]
[393785182,1762983600456,-0.02,0.00031173,2]
[393785183,1762983600547,-0.04,0.00031173,2]
[393785184,1762983600662,-0.08,0.00031173,2]
[393785185,1762983603494,-1600.0,0.00031172,3]
[393785186,1762983603916,-0.16,0.00031173,2]
[393785187,1762983603961,-0.32,0.00031173,2]
[393785188,1762983606895,-172.11655756,0.00022205,2]
[393785189,1762983607303,-0.64,0.00031173,2]
[393785190,1762983615742,218.4,0.00017143,2]
[393785191,1762983622692,-218.4,0.0001801,2]
[393785192,1762983622715,-76.76829526,0.00018877,2]
[393785193,1762983625190,-141.63170474,0.00018877,2]
[393785194,1762983625212,-108.3622734,0.00019341,2]
[393785195,1762983630926,-355.12896691,0.00019341,2]
[393785196,1762983632702,-36.50875969,0.00019341,2]
[393785197,1762983632726,-160.04728668,0.00019743,2]
[393785198,1762983638608,-58.35271332,0.00019743,2]
[393785199,1762983638633,-178.87441627,0.0002061,2]
[393785200,1762983699077,-39.52558373,0.0002061,2]
[393785201,1762983699099,-126.4,0.00021477,2]
[393785203,1762983789074,-266.7123,0.00019341,2]
[393785204,1762983789096,-10.45571275,0.00021477,2]
[393785205,1762983804752,500.0,0.00040613,30]
[393785206,1762983845467,150.20363168,0.00023625,120]
[393785207,1762983847757,-81.54428725,0.00021477,2]
[393785208,1762983847779,-168.45571275,0.00021586,2]
[393785209,1762983850005,-24.54428725,0.00021586,2]
[393785210,1762983850028,-146.8675985,0.00021694,2]
[393785211,1762983851522,-48.1324015,0.00021694,2]
[393785212,1762983851555,-171.37444211,0.00021911,2]
[393785213,1762983967723,-3.1133032,0.00021911,2]
[393785214,1762983967745,-195.0,0.00022127,2]
[393785215,1762983967767,-204.7928659,0.00022344,2]
[393785216,1762984025539,300.0,0.00040612,120]
[393785217,1762984025838,200.0,0.00040612,120]
[393785218,1762984026138,311.1,0.00040612,120]
[393785219,1762984026638,207.4,0.00040612,120]
[393785220,1762984026765,322.6107,0.00040612,120]
[393785221,1762984027105,215.0738,0.00040612,120]
[393785222,1762984027409,334.5472959,0.00040612,120]
[393785223,1762984027761,223.0315306,0.00040612,120]
[393785224,1762984028034,250.0,0.00040612,120]
[393785225,1762984028089,346.92554585,0.00040612,120]
[393785226,1762984028387,200.0,0.00040612,120]
[393785227,1762984028453,231.28369723,0.00040612,120]
[393785228,1762984028853,359.76179104,0.00040612,120]
[393785229,1762984028903,250.0,0.00040612,120]
[393785230,1762984029186,200.0,0.00040612,120]
[393785231,1762984029269,239.84119403,0.00040612,120]
[393785232,1762984029645,373.07297731,0.00040612,120]
[393785233,1762984029746,250.0,0.00040612,120]
[393785234,1762984030102,248.71531821,0.00040612,120]
[393785235,1762984030470,386.87667747,0.00040612,120]
[393785236,1762984030568,250.0,0.00040612,120]
[393785237,1762984031085,401.19111454,0.00040612,120]
[393785238,1762984031144,250.0,0.00040612,120]
[393785239,1762984031466,151.0,0.00040612,120]
[393785240,1762984031630,250.0,0.00040612,120]
[393785241,1762984031766,416.03518578,0.00040612,120]
[393785242,1762984031970,250.0,0.00040612,120]
[393785243,1762984032270,250.0,0.00040612,120]
[393785244,1762984032405,416.03518578,0.00040612,120]
[393785245,1762984032581,250.0,0.00040612,120]
[393785246,1762984032633,151.0,0.00040612,120]
[393785247,1762984032876,250.0,0.00040612,120]
[393785248,1762984033220,250.0,0.00040612,120]
[393785249,1762984033271,151.0,0.00040612,120]
[393785250,1762984033512,250.0,0.00040612,120]
[393785251,1762984033830,250.0,0.00040612,120]
[393785252,1762984033883,151.0,0.00040612,120]
[393785253,1762984034127,250.0,0.00040612,120]
[393785254,1762984034499,151.0,0.00040612,120]
[393785255,1762984034744,250.0,0.00040612,120]
[393785256,1762984035104,151.0,0.00040612,120]
[393785257,1762984035729,151.0,0.00040612,120]
[393785258,1762984036036,250.0,0.00040612,120]
[393785259,1762984036132,250.0,0.00040612,120]
[393785260,1762984036338,151.0,0.00040612,120]
[393785261,1762984036474,501.20828593,0.00040612,120]
[393785262,1762984036835,250.0,0.00040612,120]
[393785263,1762984036891,250.0,0.00040612,120]
[393785264,1762984037200,151.0,0.00040612,120]
[393785265,1762984037308,250.0,0.00040612,120]
[393785266,1762984037382,250.0,0.00040612,120]
[393785267,1762984037553,151.0,0.00040612,120]
[393785268,1762984037824,250.0,0.00040612,120]
[393785269,1762984038186,151.0,0.00040612,120]
[393785270,1762984038317,151.0,0.00040612,120]
[393785271,1762984038457,250.0,0.00040612,120]
[393785272,1762984038794,151.0,0.00040612,120]
[393785273,1762984038914,151.0,0.00040612,120]
[393785274,1762984039399,151.0,0.00040612,120]
[393785275,1762984039518,151.0,0.00040612,120]
[393785276,1762984040007,151.0,0.00040612,120]
[393785277,1762984040627,151.0,0.00040612,120]
[393785278,1762984041223,151.0,0.00040612,120]
[393785279,1762984041911,151.0,0.00040612,120]
[393785280,1762984042296,151.0,0.00040612,120]
[393785281,1762984042349,250.0,0.00040612,120]
[393785282,1762984042533,151.0,0.00040612,120]
[393785283,1762984042643,200.0,0.00040612,30]
[393785284,1762984042923,151.0,0.00040612,120]
[393785285,1762984042972,250.0,0.00040612,120]
[393785286,1762984043126,151.0,0.00040612,120]